fUSD/lending_fUSD_20250120
["ID","MTS","AMOUNT","RATE_DAILY","PERIOD"]
[349697747,1737382239688,-1484.9,0.00019251,2]
[349697748,1737382239698,-990.6,0.00019251,2]
[349697749,1737382239709,-1661.6,0.00019251,2]
[349697750,1737382239723,-1812.48,0.00019251,2]
[349697751,1737382239732,-606.69,0.00019251,2]
[349697752,1737382239743,-500.0,0.00019251,2]
[349697753,1737382239752,-1027.14,0.00019251,2]
[349697754,1737382239762,-1110.92,0.00019251,2]
[349697755,1737382239771,-548.4,0.00019251,2]
[349697756,1737382239780,-500.0,0.00019251,2]
[349697757,1737382239790,-865.54,0.00019251,2]
[349697758,1737382239799,-922.03,0.00019251,2]
[349697759,1737382239808,-2531.85,0.00019251,2]
[349697760,1737382239818,-1424.1,0.00019251,2]
[349697761,1737382239827,-751.53,0.00019251,2]
[349697762,1737382239838,-1571.77,0.00019251,2]
[349697763,1737382239848,-705.44,0.00019251,2]
[349697764,1737382239858,-500.0,0.00019251,2]
[349697765,1737382239868,-2285.53,0.00019251,2]
[349697766,1737382239878,-1016.05,0.00019251,2]
[349697767,1737382239888,-500.0,0.00019252,2]
[349697768,1737382239898,-500.0,0.00019252,2]
[349697769,1737382239907,-500.0,0.00019252,2]
[349697770,1737382239917,-500.0,0.00019252,2]
[349697771,1737382239926,-500.0,0.00019252,2]
[349697772,1737382239936,-486.68389218,0.00019252,2]
[349697773,1737382239946,-500.0,0.00019252,2]
[349697774,1737382239956,-500.0,0.00019252,2]
[349697775,1737382239967,-500.0,0.00019252,2]
[349697776,1737382239979,-500.0,0.00019252,2]
[349697777,1737382239989,-500.0,0.00019252,2]
[349697778,1737382239999,-500.0,0.00019252,2]
[349697779,1737382240008,-500.0,0.00019252,2]
[349697780,1737382240018,-617.32,0.00019252,2]
[349697781,1737382240028,-227.31087681,0.00019252,2]
[349697782,1737382240037,-500.0,0.00019252,2]
[349697783,1737382240047,-500.0,0.00019252,2]
[349697784,1737382240057,-1369.7,0.00019252,2]
[349697785,1737382240066,-370.51784183,0.00019252,2]
[349697787,1737382240076,-500.0,0.00019252,2]
[349697788,1737382240085,-500.0,0.00019252,2]
[349697789,1737382240095,-246.69417148,0.00019252,2]
[349697791,1737382240104,-500.0,0.00019252,2]
[349697792,1737382240114,-205.26655479,0.00019252,2]
[349697793,1737382240124,-500.0,0.00019252,2]
[349697794,1737382240134,-500.0,0.00019252,2]
[349697795,1737382240143,-500.0,0.00019252,2]
[349697796,1737382240153,-500.0,0.00019252,2]
[349697797,1737382240163,-500.0,0.00019252,2]
[349697798,1737382240172,-500.0,0.00019252,2]
[349697799,1737382240182,-516.04565291,0.00019252,2]
[349697800,1737382240192,-500.0,0.00019252,2]
[349697801,1737382240202,-500.0,0.00019252,2]
[349697802,1737382240212,-500.0,0.00019252,2]
[349697804,1737382240222,-500.0,0.00019252,2]
[349697806,1737382240230,-500.0,0.00019252,2]
[349697808,1737382240240,-500.0,0.00019252,2]
[349697809,1737382240250,-500.0,0.00019252,2]
[349697810,1737382240259,-500.0,0.00019252,2]
[349697811,1737382240268,-500.0,0.00019252,2]
[349697812,1737382240277,-500.0,0.00019252,2]
[349697813,1737382240286,-500.0,0.00019252,2]
[349697815,1737382240296,-500.0,0.00019252,2]
[349697816,1737382240305,-500.0,0.00019252,2]
[349697817,1737382240314,-500.0,0.00019252,2]
[349697818,1737382240324,-500.0,0.00019252,2]
[349697819,1737382240333,-251.31004046,0.00019252,2]
[349697820,1737382240342,-519.71505462,0.00019252,2]
[349697821,1737382240352,-500.0,0.00019252,2]
[349697822,1737382240362,-500.0,0.00019252,2]
[349697823,1737382240372,-500.0,0.00019252,2]
[349697824,1737382240381,-500.0,0.00019252,2]
[349697825,1737382240391,-500.0,0.00019252,2]
[349697826,1737382240400,-500.0,0.00019252,2]
[349697827,1737382240410,-500.0,0.00019252,2]
[349697828,1737382240419,-500.0,0.00019252,2]
[349697829,1737382240429,-500.0,0.00019252,2]
[349697830,1737382240438,-529.54,0.00019252,2]
[349697831,1737382240448,-500.0,0.00019252,2]
[349697832,1737382240459,-500.0,0.00019252,2]
[349697833,1737382240469,-500.0,0.00019252,2]
[349697834,1737382240479,-525.82738832,0.00019252,2]
[349697835,1737382240489,-500.0,0.00019252,2]
[349697836,1737382240498,-500.0,0.00019252,2]
[349697837,1737382240508,-551.99,0.00019252,2]
[349697838,1737382240517,-500.0,0.00019252,2]
[349697839,1737382240527,-500.0,0.00019252,2]
[349697840,1737382240537,-500.0,0.00019252,2]
[349697841,1737382240546,-500.0,0.00019252,2]
[349697842,1737382240556,-500.0,0.00019252,2]
[349697843,1737382240565,-500.0,0.00019252,2]
[349697844,1737382240573,-705.54,0.00019252,2]
[349697845,1737382240583,-679.38,0.00019252,2]
[349697846,1737382240592,-360.35095664,0.00019252,2]
[349697847,1737382240602,-500.0,0.00019252,2]
[349697848,1737382240611,-500.0,0.00019252,2]
[349697849,1737382240620,-500.0,0.00019252,2]
[349697850,1737382240630,-500.0,0.00019252,2]
[349697851,1737382240641,-680.92,0.00019252,2]
[349697852,1737382240650,-500.0,0.00019252,2]
[349697853,1737382240660,-830.39,0.00019252,2]
[349697854,1737382240669,-500.0,0.00019252,2]
[349697855,1737382240679,-500.0,0.00019252,2]
[349697856,1737382240689,-500.0,0.00019252,2]
[349697857,1737382240699,-674.65,0.00019252,2]
[349697858,1737382240708,-641.68,0.00019252,2]
[349697859,1737382240721,-500.0,0.00019252,2]
[349697860,1737382240731,-699.52,0.00019252,2]
[349697861,1737382240740,-540.44,0.00019252,2]
[349697862,1737382240750,-502.65664815,0.00019252,2]
[349697863,1737382240759,-500.0,0.00019252,2]
[349697864,1737382240769,-500.0,0.00019252,2]
[349697865,1737382240779,-500.0,0.00019252,2]
[349697866,1737382240788,-710.4,0.00019252,2]
[349697867,1737382240798,-513.17635972,0.00019252,2]
[349697868,1737382240807,-500.0,0.00019252,2]
[349697869,1737382240817,-500.0,0.00019252,2]
[349697870,1737382240826,-500.0,0.00019252,2]
[349697871,1737382240836,-500.0,0.00019252,2]
[349697872,1737382240845,-574.45,0.00019252,2]
[349697873,1737382240855,-977.39,0.00019252,2]
[349697874,1737382240865,-664.14,0.00019252,2]
[349697875,1737382240874,-1148.11,0.00019252,2]
[349697876,1737382240883,-500.0,0.00019252,2]
[349697877,1737382240893,-258.16032906,0.00019252,2]
[349697878,1737382240902,-1115.42,0.00019252,2]
[349697879,1737382240912,-1170.37,0.00019252,2]
[349697880,1737382240921,-1184.07,0.00019252,2]
[349697881,1737382240930,-2093.44,0.00019252,2]
[349697882,1737382240940,-500.0,0.00019252,2]
[349697883,1737382240951,-500.0,0.00019252,2]
[349697884,1737382240960,-1070.79,0.00019252,2]
[349697885,1737382240971,-500.0,0.00019252,2]
[349697886,1737382240980,-647.67346554,0.00019252,2]
[349697887,1737382240989,-500.0,0.00019252,2]
[349697888,1737382240999,-1163.49,0.00019252,2]
[349697889,1737382241008,-500.0,0.00019252,2]
[349697890,1737382241018,-500.0,0.00019252,2]
[349697891,1737382241028,-500.0,0.00019252,2]
[349697892,1737382241037,-923.43,0.00019252,2]
[349697893,1737382241047,-630.31,0.00019252,2]
[349697894,1737382241057,-500.0,0.00019252,2]
[349697895,1737382241066,-500.0,0.00019252,2]
[349697896,1737382241076,-500.0,0.00019252,2]
[349697897,1737382241086,-904.89,0.00019252,2]
[349697898,1737382241095,-500.0,0.00019252,2]
[349697899,1737382241103,-500.0,0.00019252,2]
[349697900,1737382241114,-500.0,0.00019252,2]
[349697901,1737382241123,-500.0,0.00019252,2]
[349697902,1737382241134,-547.4,0.00019252,2]
[349697903,1737382241144,-500.0,0.00019252,2]
[349697904,1737382241155,-500.0,0.00019252,2]
[349697905,1737382241165,-500.0,0.00019252,2]
[349697906,1737382241175,-3129.13,0.00019252,2]
[349697907,1737382241185,-500.0,0.00019252,2]
[349697908,1737382241194,-500.0,0.00019252,2]
[349697909,1737382241204,-500.0,0.00019252,2]
[349697910,1737382241214,-500.0,0.00019252,2]
[349697911,1737382241230,-500.0,0.00019252,2]
[349697912,1737382241240,-500.0,0.00019252,2]
[349697913,1737382241250,-500.0,0.00019252,2]
[349697914,1737382241259,-810.07,0.00019252,2]
[349697915,1737382241268,-500.0,0.00019252,2]
[349697916,1737382241277,-500.0,0.00019252,2]
[349697917,1737382241288,-500.0,0.00019252,2]
[349697918,1737382241299,-500.0,0.00019252,2]
[349697919,1737382241309,-500.0,0.00019252,2]
[349697920,1737382241318,-500.0,0.00019252,2]
[349697921,1737382241328,-500.0,0.00019252,2]
[349697922,1737382241338,-655.73,0.00019252,2]
[349697923,1737382241348,-500.0,0.00019252,2]
[349697924,1737382241357,-500.0,0.00019252,2]
[349697925,1737382241366,-500.0,0.00019252,2]
[349697926,1737382241375,-500.0,0.00019252,2]
[349697927,1737382241385,-1175.2,0.00019252,2]
[349697928,1737382241395,-500.0,0.00019252,2]
[349697929,1737382241405,-604.05,0.00019252,2]
[349697930,1737382241415,-500.0,0.00019252,2]
[349697931,1737382241424,-500.0,0.00019252,2]
[349697932,1737382241434,-500.0,0.00019252,2]
[349697933,1737382241444,-868.25,0.00019252,2]
[349697934,1737382241457,-322.46005771,0.00019252,2]
[349697935,1737382241477,-696.42,0.00019252,2]
[349697936,1737382241487,-500.0,0.00019252,2]
[349697937,1737382241498,-500.0,0.00019252,2]
[349697938,1737382241510,-1829.88,0.00019252,2]
[349697939,1737382241521,-500.0,0.00019252,2]
[349697940,1737382241534,-500.0,0.00019252,2]
[349697941,1737382241544,-500.0,0.00019252,2]
[349697942,1737382241554,-4031.43,0.00019252,2]
[349697943,1737382241565,-500.0,0.00019252,2]
[349697944,1737382241574,-500.0,0.00019252,2]
[349697945,1737382241584,-500.0,0.00019252,2]
[349697946,1737382241594,-515.04958124,0.00019252,2]
[349697947,1737382241604,-731.55,0.00019252,2]
[349697948,1737382241613,-500.0,0.00019252,2]
[349697949,1737382241624,-500.0,0.00019252,2]
[349697950,1737382241634,-500.0,0.00019252,2]
[349697951,1737382241644,-500.0,0.00019252,2]
[349697952,1737382241654,-500.0,0.00019252,2]
[349697953,1737382241663,-500.0,0.00019252,2]
[349697954,1737382241672,-704.46,0.00019252,2]
[349697955,1737382241682,-448.0984,0.00019253,2]
[349697956,1737382241692,-397.83170798,0.00019254,2]
[349697957,1737382241702,-507.04536644,0.00019254,2]
[349697958,1737382241712,-500.0,0.0001926,2]
[349697959,1737382241724,-8589.67,0.00019315,7]
[349697960,1737382241733,-8589.67,0.00019315,7]
[349697961,1737382241742,-203.82200623,0.00019329,2]
[349697962,1737382241752,-55555.0,0.00019351,2]
[349697963,1737382241761,-1815.72728868,0.00019376,2]
[349697964,1737382241770,-2086.82,0.00019451,2]
[349697965,1737382241780,-500.0,0.00019451,2]
[349697966,1737382241789,-722.85,0.00019451,2]
[349697967,1737382241798,-951.9,0.00019451,2]
[349697968,1737382241808,-1743.61,0.00019451,2]
[349697969,1737382241818,-500.0,0.00019451,2]
[349697970,1737382241827,-1000.0,0.00019451,2]
[349697971,1737382241837,-1815.06,0.00019451,2]
[349697972,1737382241847,-833.44,0.00019451,2]
[349697973,1737382241858,-2289.84,0.00019451,2]
[349697974,1737382241868,-2369.06,0.00019451,2]
[349697975,1737382241878,-500.0,0.00019451,2]
[349697976,1737382241887,-500.0,0.00019452,2]
[349697977,1737382241897,-500.0,0.00019452,2]
[349697978,1737382241907,-500.0,0.00019452,2]
[349697979,1737382241916,-500.0,0.00019452,2]
[349697980,1737382241925,-500.0,0.00019452,2]
[349697981,1737382241935,-500.0,0.00019452,2]
[349697982,1737382241944,-500.0,0.00019452,2]
[349697983,1737382241960,-500.0,0.00019452,2]
[349697984,1737382241971,-525.52,0.00019452,2]
[349697985,1737382241980,-641.68,0.00019452,2]
[349697986,1737382241990,-500.0,0.00019452,2]
[349697987,1737382242000,-500.0,0.00019452,2]
[349697988,1737382242009,-641.20432204,0.00019452,2]
[349697989,1737382242019,-500.0,0.00019452,2]
[349697990,1737382242028,-500.0,0.00019452,2]
[349697991,1737382242038,-699.28,0.00019452,2]
[349697992,1737382242047,-500.0,0.00019452,2]
[349697993,1737382242057,-500.0,0.00019452,2]
[349697994,1737382242066,-664.06,0.00019452,2]
[349697995,1737382242076,-500.0,0.00019452,2]
[349697996,1737382242085,-500.0,0.00019452,2]
[349697997,1737382242094,-500.0,0.00019452,2]
[349697998,1737382242104,-500.0,0.00019452,2]
[349697999,1737382242113,-500.0,0.00019452,2]
[349698000,1737382242121,-500.0,0.00019452,2]
[349698001,1737382242131,-500.0,0.00019452,2]
[349698002,1737382242140,-500.59,0.00019452,2]
[349698003,1737382242150,-500.0,0.00019452,2]
[349698004,1737382242159,-500.0,0.00019452,2]
[349698005,1737382242168,-500.0,0.00019452,2]
[349698006,1737382242178,-500.0,0.00019452,2]
[349698007,1737382242188,-500.0,0.00019452,2]
[349698008,1737382242197,-500.0,0.00019452,2]
[349698009,1737382242207,-500.0,0.00019452,2]
[349698010,1737382242216,-500.0,0.00019452,2]
[349698011,1737382242230,-529.55,0.00019452,2]
[349698012,1737382242240,-500.0,0.00019452,2]
[349698013,1737382242250,-739.75,0.00019452,2]
[349698014,1737382242259,-500.0,0.00019452,2]
[349698015,1737382242267,-500.0,0.00019452,2]
[349698017,1737382242277,-1197.72,0.00019452,2]
[349698018,1737382242287,-500.0,0.00019452,2]
[349698019,1737382242297,-913.71,0.00019452,2]
[349698020,1737382242307,-638.9,0.00019452,2]
[349698021,1737382242317,-500.0,0.00019452,2]
[349698023,1737382242326,-500.0,0.00019452,2]
[349698025,1737382242336,-581.61,0.00019452,2]
[349698027,1737382242345,-500.0,0.00019452,2]
[349698029,1737382242355,-827.32,0.00019452,2]
[349698031,1737382242364,-500.0,0.00019452,2]
[349698033,1737382242374,-737.57,0.00019452,2]
[349698035,1737382242384,-500.0,0.00019452,2]
[349698036,1737382242393,-757.91,0.00019452,2]
[349698037,1737382242404,-151.0,0.00019452,2]
[349698038,1737382242413,-1427.64,0.00019452,2]
[349698039,1737382242422,-807.49,0.00019452,2]
[349698040,1737382242431,-1049.32,0.00019452,2]
[349698041,1737382242440,-500.0,0.00019452,2]
[349698042,1737382242453,-840.54,0.00019452,2]
[349698043,1737382242462,-881.85,0.00019452,2]
[349698045,1737382242474,-1365.96,0.00019452,2]
[349698046,1737382242483,-1008.48,0.00019452,2]
[349698047,1737382242494,-500.0,0.00019452,2]
[349698048,1737382242503,-500.0,0.00019452,2]
[349698049,1737382242513,-151.0,0.00019452,2]
[349698050,1737382242522,-500.0,0.00019452,2]
[349698051,1737382242532,-660.95,0.00019452,2]
[349698052,1737382242543,-1272.81,0.00019452,2]
[349698053,1737382242552,-151.0,0.00019452,2]
[349698054,1737382242562,-935.56,0.00019452,2]
[349698055,1737382242571,-699.74,0.00019452,2]
[349698056,1737382242580,-151.0,0.00019452,2]
[349698057,1737382242590,-151.0,0.00019452,2]
[349698058,1737382242600,-500.0,0.00019452,2]
[349698059,1737382242610,-859.79,0.00019452,2]
[349698060,1737382242619,-500.0,0.00019452,2]
[349698061,1737382242629,-718.07,0.00019452,2]
[349698062,1737382242639,-2440.68,0.00019452,2]
[349698063,1737382242649,-517.27,0.00019452,2]
[349698064,1737382242659,-256.972325,0.00019452,2]
[349698065,1737382242669,-500.0,0.00019452,2]
[349698066,1737382242679,-151.0,0.00019452,2]
[349698067,1737382242688,-867.38,0.00019452,2]
[349698068,1737382242698,-500.0,0.00019452,2]
[349698069,1737382242708,-2934.2,0.00019452,2]
[349698070,1737382242718,-832.79,0.00019452,2]
[349698071,1737382242730,-1840.64,0.00019452,2]
[349698072,1737382242740,-567.16180898,0.00019463,2]
[349698073,1737382242750,-500.0,0.00019463,2]
[349698074,1737382242762,-606.63,0.00019463,2]
[349698075,1737382242773,-500.0,0.00019463,2]
[349698076,1737382242783,-500.0,0.00019463,2]
[349698077,1737382242792,-500.0,0.00019463,2]
[349698078,1737382242802,-500.0,0.00019463,2]
[349698079,1737382242812,-500.0,0.00019463,2]
[349698080,1737382242821,-500.0,0.00019463,2]
[349698081,1737382242831,-500.0,0.00019463,2]
[349698083,1737382242840,-500.0,0.00019463,2]
[349698084,1737382242850,-500.0,0.00019463,2]
[349698085,1737382242863,-500.0,0.00019463,2]
[349698087,1737382242872,-500.0,0.00019463,2]
[349698088,1737382242882,-500.0,0.00019463,2]
[349698089,1737382242891,-500.0,0.00019463,2]
[349698090,1737382242900,-500.0,0.00019463,2]
[349698091,1737382242910,-500.0,0.00019463,2]
[349698096,1737382243089,-151.0,0.00019463,2]
[349698098,1737382243099,-151.0,0.00019463,2]
[349698100,1737382243109,-151.0,0.00019463,2]
[349698102,1737382243118,-1815.72728868,0.00019521,2]
[349698104,1737382243128,-1082.0,0.00019525,2]
[349698105,1737382243137,-665.83,0.00019525,2]
[349698106,1737382243147,-500.0,0.00019525,2]
[349698107,1737382243157,-532.17,0.00019525,2]
[349698108,1737382243167,-500.0,0.00019525,2]
[349698109,1737382243177,-1130.48,0.00019525,2]
[349698110,1737382243186,-726.19,0.00019525,2]
[349698111,1737382243195,-543.051879,0.00019525,2]
[349698112,1737382243205,-1357.98,0.00019525,2]
[349698113,1737382243214,-522.19,0.00019525,2]
[349698114,1737382243226,-500.0,0.00019525,2]
[349698115,1737382243235,-576.84,0.00019525,2]
[349698116,1737382243245,-1943.2,0.00019525,2]
[349698117,1737382243254,-511.74,0.00019525,2]
[349698118,1737382243264,-500.0,0.00019525,2]
[349698119,1737382243274,-605.11,0.00019525,2]
[349698120,1737382243283,-1662.58,0.00019525,2]
[349698121,1737382243292,-500.0,0.00019525,2]
[349698122,1737382243302,-1484.9,0.00019525,2]
[349698123,1737382243311,-990.6,0.00019525,2]
[349698124,1737382243319,-1661.6,0.00019525,2]
[349698125,1737382243329,-1812.48,0.00019525,2]
[349698126,1737382243338,-606.69,0.00019525,2]
[349698127,1737382243348,-1027.14,0.00019525,2]
[349698128,1737382243358,-1110.92,0.00019525,2]
[349698129,1737382243368,-548.4,0.00019525,2]
[349698130,1737382243379,-500.0,0.00019525,2]
[349698131,1737382243390,-865.54,0.00019525,2]
[349698132,1737382243400,-922.03,0.00019525,2]
[349698133,1737382243409,-2531.85,0.00019525,2]
[349698134,1737382243418,-1424.1,0.00019525,2]
[349698135,1737382243428,-751.53,0.00019525,2]
[349698136,1737382243438,-1571.77,0.00019525,2]
[349698137,1737382243448,-705.44,0.00019525,2]
[349698138,1737382243459,-500.0,0.00019525,2]
[349698139,1737382243469,-2285.53,0.00019525,2]
[349698140,1737382243479,-1016.05,0.00019525,2]
[349698141,1737382243489,-500.0,0.00019526,2]
[349698142,1737382243500,-500.0,0.00019526,2]
[349698143,1737382243510,-500.0,0.00019526,2]
[349698144,1737382243519,-500.0,0.00019526,2]
[349698145,1737382243528,-617.32,0.00019526,2]
[349698146,1737382243540,-500.0,0.00019526,2]
[349698147,1737382243551,-1369.7,0.00019526,2]
[349698148,1737382243560,-500.0,0.00019526,2]
[349698149,1737382243570,-500.0,0.00019526,2]
[349698150,1737382243580,-480.83506749,0.00019526,2]
[349698151,1737382243590,-500.0,0.00019526,2]
[349698152,1737382243599,-500.0,0.00019526,2]
[349698153,1737382243608,-261.50433266,0.00019526,2]
[349698154,1737382243618,-500.0,0.00019526,2]
[349698155,1737382243628,-500.0,0.00019526,2]
[349698156,1737382243638,-500.0,0.00019526,2]
[349698157,1737382243647,-500.19782587,0.00019526,2]
[349698158,1737382243656,-500.0,0.00019526,2]
[349698159,1737382243666,-500.0,0.00019526,2]
[349698160,1737382243675,-500.0,0.00019526,2]
[349698161,1737382243684,-500.0,0.00019526,2]
[349698162,1737382243694,-500.0,0.00019526,2]
[349698163,1737382243704,-500.0,0.00019526,2]
[349698164,1737382243714,-500.0,0.00019526,2]
[349698165,1737382243725,-500.0,0.00019526,2]
[349698166,1737382243735,-500.0,0.00019526,2]
[349698167,1737382243745,-500.0,0.00019526,2]
[349698168,1737382243755,-500.0,0.00019526,2]
[349698169,1737382243765,-500.0,0.00019526,2]
[349698170,1737382243775,-500.0,0.00019526,2]
[349698171,1737382243784,-500.0,0.00019526,2]
[349698172,1737382243794,-513.86874534,0.00019526,2]
[349698173,1737382243803,-500.0,0.00019526,2]
[349698174,1737382243813,-529.54,0.00019526,2]
[349698175,1737382243822,-500.0,0.00019526,2]
[349698176,1737382243832,-500.0,0.00019526,2]
[349698177,1737382243842,-372.29596495,0.00019526,2]
[349698178,1737382243851,-500.0,0.00019526,2]
[349698179,1737382243861,-500.0,0.00019526,2]
[349698180,1737382243871,-551.99,0.00019526,2]
[349698181,1737382243880,-500.0,0.00019526,2]
[349698182,1737382243889,-500.0,0.00019526,2]
[349698183,1737382243899,-500.0,0.00019526,2]
[349698184,1737382243908,-500.0,0.00019526,2]
[349698185,1737382243918,-500.0,0.00019526,2]
[349698186,1737382243928,-500.0,0.00019526,2]
[349698187,1737382243940,-705.54,0.00019526,2]
[349698188,1737382243950,-679.38,0.00019526,2]
[349698189,1737382243960,-500.0,0.00019526,2]
[349698190,1737382243970,-500.0,0.00019526,2]
[349698191,1737382243980,-500.0,0.00019526,2]
[349698192,1737382243990,-500.0,0.00019526,2]
[349698193,1737382244000,-680.92,0.00019526,2]
[349698194,1737382244010,-500.0,0.00019526,2]
[349698195,1737382244019,-830.39,0.00019526,2]
[349698196,1737382244028,-295.01119464,0.00019526,2]
[349698197,1737382244038,-500.0,0.00019526,2]
[349698198,1737382244047,-500.0,0.00019526,2]
[349698199,1737382244057,-674.65,0.00019526,2]
[349698200,1737382244066,-641.68,0.00019526,2]
[349698201,1737382244075,-500.0,0.00019526,2]
[349698202,1737382244086,-699.52,0.00019526,2]
[349698203,1737382244095,-540.44,0.00019526,2]
[349698204,1737382244104,-500.0,0.00019526,2]
[349698205,1737382244113,-166.048568,0.00019526,2]
[349698206,1737382244124,-500.0,0.00019526,2]
[349698207,1737382244133,-710.4,0.00019526,2]
[349698208,1737382244143,-151.0,0.00019526,2]
[349698209,1737382244152,-500.0,0.00019526,2]
[349698210,1737382244162,-500.0,0.00019526,2]
[349698211,1737382244171,-151.0,0.00019526,2]
[349698212,1737382244180,-164.512187,0.00019526,2]
[349698213,1737382244189,-151.0,0.00019526,2]
[349698214,1737382244199,-977.39,0.00019526,2]
[349698215,1737382244208,-664.14,0.00019526,2]
[349698216,1737382244218,-1148.11,0.00019526,2]
[349698217,1737382244228,-500.0,0.00019526,2]
[349698218,1737382244237,-1115.42,0.00019526,2]
[349698219,1737382244247,-1170.37,0.00019526,2]
[349698220,1737382244257,-1184.07,0.00019526,2]
[349698221,1737382244266,-2093.44,0.00019526,2]
[349698222,1737382244276,-500.0,0.00019526,2]
[349698223,1737382244285,-500.0,0.00019526,2]
[349698224,1737382244295,-1070.79,0.00019526,2]
[349698225,1737382244304,-500.0,0.00019526,2]
[349698226,1737382244313,-500.0,0.00019526,2]
[349698227,1737382244323,-1163.49,0.00019526,2]
[349698228,1737382244332,-151.0,0.00019526,2]
[349698229,1737382244342,-500.0,0.00019526,2]
[349698230,1737382244351,-500.0,0.00019526,2]
[349698231,1737382244361,-500.0,0.00019526,2]
[349698232,1737382244371,-923.43,0.00019526,2]
[349698233,1737382244380,-630.31,0.00019526,2]
[349698234,1737382244390,-151.0,0.00019526,2]
[349698235,1737382244400,-500.0,0.00019526,2]
[349698236,1737382244409,-151.0,0.00019526,2]
[349698237,1737382244419,-500.0,0.00019526,2]
[349698238,1737382244427,-154.370443,0.00019526,2]
[349698239,1737382244436,-500.0,0.00019526,2]
[349698240,1737382244447,-904.89,0.00019526,2]
[349698241,1737382244457,-500.0,0.00019526,2]
[349698242,1737382244468,-500.0,0.00019526,2]
[349698243,1737382244480,-500.0,0.00019526,2]
[349698244,1737382244490,-500.0,0.00019526,2]
[349698245,1737382244500,-547.4,0.00019526,2]
[349698246,1737382244509,-500.0,0.00019526,2]
[349698247,1737382244519,-151.0,0.00019526,2]
[349698248,1737382244530,-151.0,0.00019526,2]
[349698249,1737382244542,-3129.13,0.00019526,2]
[349698250,1737382244552,-500.0,0.00019526,2]
[349698251,1737382244562,-151.0,0.00019526,2]
[349698252,1737382244572,-500.0,0.00019526,2]
[349698253,1737382244581,-500.0,0.00019526,2]
[349698254,1737382244590,-500.0,0.00019526,2]
[349698255,1737382244600,-500.0,0.00019526,2]
[349698256,1737382244610,-500.0,0.00019526,2]
[349698257,1737382244620,-810.07,0.00019526,2]
[349698258,1737382244629,-500.0,0.00019526,2]
[349698259,1737382244638,-500.0,0.00019526,2]
[349698260,1737382244647,-655.73,0.00019526,2]
[349698261,1737382244657,-500.0,0.00019526,2]
[349698262,1737382244666,-500.0,0.00019526,2]
[349698263,1737382244675,-1175.2,0.00019526,2]
[349698264,1737382244685,-500.0,0.00019526,2]
[349698265,1737382244693,-604.05,0.00019526,2]
[349698266,1737382244702,-500.0,0.00019526,2]
[349698267,1737382244711,-500.0,0.00019526,2]
[349698268,1737382244724,-868.25,0.00019526,2]
[349698269,1737382244734,-696.42,0.00019526,2]
[349698270,1737382244744,-500.0,0.00019526,2]
[349698271,1737382244754,-500.0,0.00019526,2]